Cogmind - Beta 13 --- EXPLORER MODE // 2024.04.12 @ 11:07:35 Player: Krytoss Result: Destroyed by AG-01988 with Assembled Focal Cannon Performance ------------- Evolutions (3) 1500 Regions Visited (9) 1800 Robots Destroyed (113) 565 Value Destroyed (4043) 4043 Prototype IDs (36) 720 Alien Tech Used (0) 0 Bonus (2079) 2079 TOTAL SCORE: 10707 Bonus ------- Follower Combat Kills 354 Met Imprinter 300 Destroyed Z-Imprinter 1000 Triggered Deep Caves Wall 500 Friendly Fire -75 Cogmind --------- Core Integrity 0/700 Matter 129/300 Energy 99/100 System Corruption 0% Temperature Cool (18) Movement Core (50) Location -7/Deep Caves Parts ------- > --- POWER (1) -------- (None) > --- PROPULSION (3) --- (None) > --- UTILITY (7) ------ Experimental Heat Sink Makeshift Hacking Suite Makeshift Hacking Suite Makeshift Hacking Suite > --- WEAPON (3) ------- CR-A16's Pointy Stick > --- INVENTORY (5) ---- Hover Unit Advanced ECM Suite Zionite Weapon Casing Hacking Drone Bay (1/1) Beamcaster Peak State ------------ > --- POWER ------------ F-cell Engine > --- PROPULSION ------- VSS Leg Improved VSS Leg Improved VSS Leg Arachnoskeleton > --- UTILITY ---------- Advanced Heat Sink High-capacity Storage Unit Advanced Visual Processing Unit Kinecellerator Improved Propulsion Shielding Hardened Heavy Armor Plating > --- WEAPON ----------- Advanced Beam Rifle Improved Heavy Laser Gauss Cannon > --- INVENTORY -------- Heavy Ion Engine VSS Leg Cryofiber Web Large Storage Unit Structural Scanner Advanced Terrain Scan Processor Seismic Detector Improved Targeting Computer Layered Light Armor Plating System Restoration Module System Restoration Module Long-range Tractor Beam Precision Beam Rifle Precision Beam Rifle Cooled Particle Cannon Gauss Rifle Gauss Rifle Heavy Missile Launcher Power Maul Impact Mace [Rating: 84] Favorites ----------- Power F-cell Engine Engine F-cell Engine Power Core Light Nuclear Core Reactor Zionite Light DM Reactor Propulsion Improved VSS Leg Treads Light Treads Leg Improved VSS Leg Utility Large Storage Unit Device Seismic Detector Storage Large Storage Unit Processor Advanced Visual Processing Unit Hackware Makeshift Hacking Suite Protection Improved Propulsion Shielding Weapon Battle Rifle Energy Gun Precision Beam Rifle Energy Cannon Subdweller Beam Cannon Ballistic Gun Battle Rifle Ballistic Cannon Light Cannon Launcher Grenade Launcher Impact Weapon Makeshift Hammer Piercing Weapon CR-A16's Pointy Stick Build | -11 -10 -10 -8 -8 -7 -7 -7 -7 -7 ------- Run | Yrd Mat Sub Mat Sto Fac Low Low Zio Dee Slots Evolved 7 | . 1 . 4 . 2 . . . . Power . | . . . . . . . . . . Propulsion 1 | . . . 1 . . . . . . Utility 5 | . 1 . 2 . 2 . . . . Weapon 1 | . . . 1 . . . . . . Parts Attached 163 | . 12 41 21 20 27 15 . 3 24 Power 15 | . 3 5 3 2 . . . . 2 Engine 13 | . 2 5 3 2 . . . . 1 Core 1 | . 1 . . . . . . . . Reactor 1 | . . . . . . . . . 1 Propulsion 11 | . 4 3 1 . 3 . . . . Treads 7 | . 4 3 . . . . . . . Leg 4 | . . . 1 . 3 . . . . Wheel . | . . . . . . . . . . Hover . | . . . . . . . . . . Flight . | . . . . . . . . . . Utility 53 | . 2 4 7 7 13 7 . . 13 Device 24 | . 1 . 3 5 5 4 . . 6 Storage 4 | . 1 . 1 . 1 . . . 1 Processor 2 | . . . . . 1 . . . 1 Hackware 4 | . . . . . . . . . 4 Protection 19 | . . 4 3 2 6 3 . . 1 Artifact . | . . . . . . . . . . Weapon 84 | . 3 29 10 11 11 8 . 3 9 Energy Gun 19 | . . . 1 6 5 2 . 1 4 Energy Cannon 5 | . 1 3 . . . . . 1 . Ballistic Gun 20 | . . 7 6 3 . 2 . . 2 Ballistic Cannon 11 | . 1 6 1 . . 1 . 1 1 Launcher 7 | . 1 3 . 1 . 1 . . 1 Special Weapon . | . . . . . . . . . . Impact Weapon 21 | . . 10 2 1 6 2 . . . Slashing Weapon . | . . . . . . . . . . Piercing Weapon 1 | . . . . . . . . . 1 Special Melee Weapon . | . . . . . . . . . . Unidentified Prototypes 9 | . . . 1 1 1 . . . 6 Parts Lost 15 | . 1 . . . . . . . 14 Power 3 | . 1 . . . . . . . 2 Propulsion 2 | . . . . . . . . . 2 Utility 6 | . . . . . . . . . 6 Weapon 4 | . . . . . . . . . 4 Highest Loss Streak 4 | . 1 . . . . . . . 4 To Critical Strikes . | . . . . . . . . . . Average Slot Usage (%) 82 | . 99 89 62 66 80 87 88 88 71 Engine 6 | . 9 9 6 6 5 5 5 5 3 Treads 8 | . 19 25 . . . . . . . Leg 10 | . 5 . 5 6 15 23 23 23 15 Device 10 | . 12 . 12 13 14 16 17 17 13 Storage 7 | . 12 12 6 6 5 5 5 5 5 Processor 2 | . . . . . 4 5 5 5 6 Protection 12 | . 12 13 8 13 14 11 11 11 4 Energy Gun 4 | . 1 . . 7 12 9 5 5 5 Ballistic Gun 6 | . 12 11 11 7 . . . . . Ballistic Cannon 2 | . 10 2 3 . . 1 5 4 1 Impact Weapon 3 | . . 6 . 4 3 3 5 5 . Naked Turns 14 | . . . . . . . . . 14 Heaviest Build 94 | 20 32 56 61 56 68 94 77 80 82 Greatest Support 92 | 20 40 40 50 50 92 92 77 92 92 Greatest Overweight (x) 1 | . 1 1 1 1 1 1 . 1 1 Average Overweight (x) . | . . . . . . . . . . Largest Inventory Capacity 20 | 10 15 15 15 15 20 20 20 20 20 Average Capacity 16 | 10 14 15 15 15 15 20 20 20 16 Most Carried 20 | 8 14 15 15 15 19 20 20 20 20 Average Carried 15 | 7 10 14 14 14 15 19 20 19 15 Final Capacity 20 | 10 15 15 15 15 20 20 20 20 5 Final Carried 20 | 8 14 15 15 15 19 20 20 20 5 Class Distribution -------------------- 76% | Hacker-Mutant 18% | Hacker-Tank Dominant Class ---------------- Hacker-Mutant | -10/Materials Hacker-Mutant | -10/Subcaves Hacker-Tank | -8/Materials Hacker-Mutant | -8/Storage Hacker-Mutant | -7/Factory Hacker-Mutant | -7/Lower Caves Hacker-Mutant | -7/Lower Caves Hacker-Mutant | -7/Zion Hacker-Mutant | -7/Deep Caves Resources | -11 -10 -10 -8 -8 -7 -7 -7 -7 -7 ----------- Run | Yrd Mat Sub Mat Sto Fac Low Low Zio Dee Matter Collected 3369 | 206 340 875 773 457 270 147 17 20 264 Remotely 116 | . . . . . . . . . 116 Salvage Created 4723 | 99 290 906 1466 745 750 145 53 . 269 Parts 249 | 1 22 46 80 41 34 5 . . 20 Haulers Intercepted 7 | . 2 . 2 3 . . . . . Recyclers Shooed . | . . . . . . . . . . Parts Field Recycled . | . . . . . . . . . . Retrieved Matter . | . . . . . . . . . . Parts Self-Destructed . | . . . . . . . . . . Prevented . | . . . . . . . . . . Kills | -11 -10 -10 -8 -8 -7 -7 -7 -7 -7 ------- Run | Yrd Mat Sub Mat Sto Fac Low Low Zio Dee Combat Hostiles Destroyed 92 | . 7 24 27 10 14 4 . . 6 Melee 2 | . . 2 . . . . . . . Guns 50 | . 3 9 17 7 11 1 . . 2 Cannons 21 | . 4 7 10 . . . . . . AOE 9 | . . 3 . . . 2 . . 4 Classes Destroyed 16 | 2 4 2 3 2 1 . . . 2 Worker 3 | . . . . 2 1 . . . . Builder 3 | . . . . 2 1 . . . . Tunneler 6 | 1 2 . . . 3 . . . . Hauler 7 | . 2 . 2 3 . . . . . Recycler 2 | 1 . . 1 . . . . . . Watcher 4 | . 2 . . 1 1 . . . . Swarmer 6 | . 2 . . . 3 1 . . . Grunt 30 | . 5 . 15 3 5 2 . . . Duelist 2 | . . . 2 . . . . . . Sentry 17 | . . . 8 6 2 1 . . . Hunter 4 | . . . 2 1 1 . . . . Programmer 3 | . . . . . 3 . . . . Artisan 1 | . . 1 . . . . . . . Subdweller 24 | . . 24 . . . . . . . Z-Technician 5 | . . . . . . . . . 5 Z-Light 5 | . . . . . . . . . 5 Best Kill Streak 4 | 2 3 4 4 3 3 3 . . 4 Combat Bots Only 4 | . 2 4 4 2 3 3 . . 3 Max Kills in Single Turn 3 | 1 1 2 1 1 1 2 . . 3 Gunslinging . | . . . . . . . . . . Exploded 3 | . . 1 . . . 2 . . 3 Melee 1 | . . 1 . . . . . . . Uniques/NPCs Destroyed 1 | . . . . . . . . . 1 Z-Imprinter (-7/Deep Caves) Combat | -11 -10 -10 -8 -8 -7 -7 -7 -7 -7 -------- Run | Yrd Mat Sub Mat Sto Fac Low Low Zio Dee Hostile Shots Fired 655 | . 22 116 86 51 135 57 . . 188 Missed 206 | . 10 24 29 13 42 28 . . 60 Damage Taken 5922 | . 107 1364 562 384 796 240 . . 2469 Core 893 | . 8 120 36 28 85 13 . . 603 Absorbed by Shields . | . . . . . . . . . . Redirected to Shielding 333 | . 3 43 19 29 131 80 . . 28 Ignored by Resistances 3540 | . 70 800 343 236 505 158 . . 1428 Regen/Repaired (Parts) 162 | . . . 9 49 104 . . . . Core Remaining (%) 78 | 100 . 48 . 88 . . . . . Volleys Fired 364 | 7 41 91 66 43 36 45 . 5 30 Largest 3 | 2 2 2 3 3 3 3 . 1 3 Hottest 187 | 70 60 85 140 183 187 187 . 90 141 Shots Fired 689 | 9 70 137 174 100 92 53 . 5 49 Gun 519 | 9 38 66 129 95 92 52 . . 38 Cannon 147 | . 30 61 45 . . . . 5 6 Launcher 23 | . 2 10 . 5 . 1 . . 5 Special . | . . . . . . . . . . Kinetic 386 | 2 67 97 161 41 . . . . 18 Thermal 277 | 7 1 30 13 51 92 52 . 5 26 Explosive 23 | . 2 10 . 5 . 1 . . 5 Electromagnetic 3 | . . . . 3 . . . . . Robot Hit Streak 44 | 9 10 40 29 32 44 26 . . 6 Robot Miss Streak 4 | . 2 1 1 2 1 . . . 4 Penetration Max . | . . . . . . . . . . Secondary Targets 1 | . . 1 . . . . . . . Max Gunslinging Chain 1 | . . 1 . . . . . . . Shots Hit Robots 538 | 9 49 119 142 93 83 12 1 . 30 Core Hits 204 | 3 20 38 61 23 28 6 1 . 24 Critical Kills 4 | . . 2 1 . 1 . . . . Critical Parts Destroyed 7 | . . 4 1 2 . . . . . Critical Strikes 29 | . 1 8 4 4 11 1 . . . Burn 13 | . . . . 2 10 1 . . . Destroy 3 | . . 1 2 . . . . . . Blast 5 | . 1 2 2 . . . . . . Smash 8 | . . 5 . 2 1 . . . . Melee Attacks 194 | . . 111 3 26 36 10 3 5 . Impact 194 | . . 111 3 26 36 10 3 5 . Slashing . | . . . . . . . . . . Piercing . | . . . . . . . . . . Sneak Attacks 6 | . . 1 . 2 3 . . . . Combat Hostiles . | . . . . . . . . . . Follow-up Attacks . | . . . . . . . . . . Damage Inflicted 12116 | 113 844 2621 2357 2093 2164 413 95 . 1416 Guns 6685 | 113 335 683 1661 1471 1583 242 . . 597 Cannons 1803 | . 416 598 696 . . . . . 93 Explosions 1539 | . 79 563 . . . 171 . . 726 Melee 2067 | . . 777 . 614 581 . 95 . . Ramming 22 | . 14 . . 8 . . . . . Kinetic 4735 | 27 751 1042 2023 667 . . . . 225 Thermal 3690 | 86 . 239 334 741 1583 242 . . 465 Explosive 1539 | . 79 563 . . . 171 . . 726 Electromagnetic 63 | . . . . 63 . . . . . Impact 2067 | . . 777 . 614 581 . 95 . . Slashing . | . . . . . . . . . . Piercing . | . . . . . . . . . . Highest Corruption . | . . . . . . . . . . Average Corruption . | . . . . . . . . . . Corruption Purged . | . . . . . . . . . . Corruption Blocked . | . . . . . . . . . . Overload Shots 5 | . . . . . . . . 5 . Overflow Damage 708 | . . 224 . 290 189 . . . 5 Projectiles . | . . . . . . . . . . Explosions 5 | . . . . . . . . . 5 Melee 703 | . . 224 . 290 189 . . . . Knockbacks 20 | . 3 4 9 1 2 . . . 1 Impact 3 | . . . . 1 2 . . . . Kinetic 15 | . 2 4 8 . . . . . 1 Secondary 2 | . 1 . 1 . . . . . . Self-Inflicted Damage 13 | . . . . 13 . . . . . Shots 1 | . . . . 1 . . . . . Rammed . | . . . . . . . . . . Targets Rammed 3 | . 2 . . 1 . . . . . Kicked 2 | . 1 . . 1 . . . . . Crushed 1 | . 1 . . . . . . . . Highest Temperature 513 | 30 24 18 254 210 402 255 . 148 513 Average Temperature 94 | 14 6 7 64 59 103 89 . 84 240 Received Heat Transfer 2409 | . 39 390 360 198 273 48 . . 1101 Effects 14 | . . . . . . . . . 14 Energy Bleed 1 | . . . . . . . . . 1 Interference 4 | . . . . . . . . . 4 Matter Decay 4 | . . . . . . . . . 4 Short Circuit 1 | . . . . . . . . . 1 Damage (major) 4 | . . . . . . . . . 4 Siege Activations . | . . . . . . . . . . Robots Corrupted . | . . . . . . . . . . Combat Hostiles . | . . . . . . . . . . Parts Fried 14 | . . 7 . 7 . . . . . Impact Corruptions 27 | . . 7 . 10 10 . . . . Robots Melted 3 | . . . . . 2 1 . . . Combat Hostiles 3 | . . . . . 2 1 . . . Parts Melted 21 | . . 2 . 2 16 1 . . . Heat Transferred 7316 | 259 . 444 444 1628 3441 518 . . 582 Parts Sabotaged . | . . . . . . . . . . Parts Stolen . | . . . . . . . . . . Parts Stripped . | . . . . . . . . . . Power Chain Reactions . | . . . . . . . . . . Alert | -11 -10 -10 -8 -8 -7 -7 -7 -7 -7 ------- Run | Yrd Mat Sub Mat Sto Fac Low Low Zio Dee Peak Influence 410 | 10 148 . 394 410 209 . . . . Initial 70 | . 4 . . 70 23 . . . . Average 109 | 4 54 . 157 130 94 . . . . Maximum Alert Level 2 | . . . 1 2 1 . . . . Low Security (%) 81 | 100 100 . 59 81 86 . . . . Level 1 18 | . . . 40 17 13 . . . . Level 2 . | . . . . 1 . . . . . Level 3 . | . . . . . . . . . . Level 4 . | . . . . . . . . . . Level 5 . | . . . . . . . . . . High Security . | . . . . . . . . . . Max Security . | . . . . . . . . . . Squads Dispatched 13 | . . . 7 1 5 . . . . Investigation 3 | . . . 3 . . . . . . Extermination 3 | . . . . . 3 . . . . Reinforcement 7 | . . . 4 1 2 . . . . Assault . | . . . . . . . . . . Garrison . | . . . . . . . . . . Intercept . | . . . . . . . . . . Searches Triggered . | . . . . . . . . . . Construction Impeded 1 | . . . 1 . . . . . . Haulers Reinforced . | . . . . . . . . . . Active Scanning Responses . | . . . . . . . . . . Cargo Convoy Interrupts 1 | . . . . . 1 . . . . Stealth | -11 -10 -10 -8 -8 -7 -7 -7 -7 -7 --------- Run | Yrd Mat Sub Mat Sto Fac Low Low Zio Dee Distress Signals 9 | . 2 . 5 2 . . . . . Communications Jammed . | . . . . . . . . . . Distress Signals . | . . . . . . . . . . Times Spotted 186 | . 16 25 37 22 36 5 1 . 44 Peak Tracking Total 38 | . 4 3 6 4 6 3 1 . 38 Tactical Retreats 13 | . 2 . 3 1 2 2 . . 3 Traps | -11 -10 -10 -8 -8 -7 -7 -7 -7 -7 ------- Run | Yrd Mat Sub Mat Sto Fac Low Low Zio Dee Traps Triggered 4 | . 2 . . . 2 . . . . Indirectly . | . . . . . . . . . . Trap Hack Attempts . | . . . . . . . . . . Triggered . | . . . . . . . . . . Disarmed . | . . . . . . . . . . Reprogrammed 4 | . . . . 4 . . . . . Reused . | . . . . . . . . . . Traps Extracted . | . . . . . . . . . . Installed . | . . . . . . . . . . Triggered 1 | . . . . . 1 . . . . Machines | -11 -10 -10 -8 -8 -7 -7 -7 -7 -7 ---------- Run | Yrd Mat Sub Mat Sto Fac Low Low Zio Dee Machines Disabled 8 | . . . . 4 . . . 3 1 Max in Single Turn 1 | . . . . 1 . . . 1 1 Garrison Access 2 | . . . 1 . 1 . . . . Machines Repaired . | . . . . . . . . . . Machines Dismantled . | . . . . . . . . . . Machines Sabotaged . | . . . . . . . . . . Overloaded Fab Kills . | . . . . . . . . . . Hacking | -11 -10 -10 -8 -8 -7 -7 -7 -7 -7 --------- Run | Yrd Mat Sub Mat Sto Fac Low Low Zio Dee Machines Accessed 45 | . 9 . 10 11 12 2 . 1 . Terminals 30 | . 8 . 6 10 6 . . . . Fabricators 3 | . . . . . 3 . . . . Repair Stations 4 | . 1 . 1 1 1 . . . . Recycling Units . | . . . . . . . . . . Scanalyzers 3 | . . . 2 . 1 . . . . Garrison Access 2 | . . . 1 . 1 . . . . Total Hacks 131 | . 27 . 29 37 31 2 . 5 . Successful 82 | . 13 . 16 22 24 2 . 5 . Failed 49 | . 14 . 13 15 7 . . . . Catastrophic 3 | . 2 . . . 1 . . . . Database Lockouts . | . . . . . . . . . . Manual 64 | . 19 . 14 18 12 . . 1 . Terminals 101 | . 26 . 22 35 18 . . . . Fabricators 5 | . . . . . 5 . . . . Repair Stations 8 | . 1 . 2 2 3 . . . . Recycling Units . | . . . . . . . . . . Scanalyzers 7 | . . . 3 . 4 . . . . Garrison Access 3 | . . . 2 . 1 . . . . Terminal Hacks 59 | . 12 . 10 20 10 2 . 5 . Part Schematic 6 | . . . . . 1 . . 5 . Prototype ID Bank 23 | . 8 . 6 6 3 . . . . Open Door 5 | . . . . 3 . 2 . . . Branch Access Points 1 | . . . . 1 . . . . . Emergency Access Points 1 | . . . . . 1 . . . . Terminal Index 2 | . . . 1 . 1 . . . . Alert Level 1 | . . . . 1 . . . . . Unreport Threat 1 | . . . . 1 . . . . . Locate Traps 5 | . 2 . . 2 1 . . . . Disarm Traps 1 | . 1 . . . . . . . . Reprogram Traps 1 | . . . . 1 . . . . . Dispatch Records 2 | . . . 1 1 . . . . . Security Status 1 | . . . . 1 . . . . . Recall Investigation 1 | . . . . . 1 . . . . Recall Reinforcements 2 | . . . . 1 1 . . . . Hauler Manifests 4 | . 1 . 2 . 1 . . . . Registered Components 1 | . . . . 1 . . . . . Registered Prototypes 1 | . . . . 1 . . . . . Fabricator Hacks 5 | . . . . . 5 . . . . Network Status 2 | . . . . . 2 . . . . Load Schematic 1 | . . . . . 1 . . . . Build 2 | . . . . . 2 . . . . Repair Station Hacks 6 | . . . 2 2 2 . . . . Scan Component 3 | . . . 1 1 1 . . . . Repair 3 | . . . 1 1 1 . . . . Recycling Unit Hacks . | . . . . . . . . . . Scanalyzer 5 | . . . 1 . 4 . . . . Insert Component 3 | . . . 1 . 2 . . . . Analyze 2 | . . . . . 2 . . . . Garrison Access Hacks 2 | . . . 1 . 1 . . . . Seal Access 2 | . . . 1 . 1 . . . . Unauthorized Hacks 5 | . 1 . 2 . 2 . . . . Terminals 2 | . . . . . 2 . . . . Botnet 2 | . . . . . 2 . . . . Fabricators . | . . . . . . . . . . Repair Stations 1 | . 1 . . . . . . . . Mechanics 1 | . 1 . . . . . . . . Recycling Units . | . . . . . . . . . . Scanalyzers 2 | . . . 2 . . . . . . Extract 2 | . . . 2 . . . . . . Garrison Access . | . . . . . . . . . . Data Cores Recovered . | . . . . . . . . . . Used . | . . . . . . . . . . Hacking Detections 32 | . 8 . 6 8 10 . . . . Full Trace Events 2 | . 1 . 1 . . . . . . Feedback Events . | . . . . . . . . . . Feedback Blocked . | . . . . . . . . . . Robot Schematics Acquired 4 | . . . . . . . . 4 . Robots Built 1 | . . . . . 1 . . . . Authchips . | . . . . . . . . . . Time 81 | . . . . . 81 . . . . Total Robot Build Rating 1 | . . . . . 1 . . . . Part Schematics Acquired 31 | . . . 9 . 3 . . 19 . Parts Built 2 | . . . . . 2 . . . . Authchips . | . . . . . . . . . . Time 95 | . . . . . 95 . . . . Total Part Build Rating 10 | . . . . . 10 . . . . Parts Repaired 3 | . . . 1 1 1 . . . . Time 104 | . . . 26 38 40 . . . . Parts Recycled . | . . . . . . . . . . Recycled Matter . | . . . . . . . . . . Retrieved Matter . | . . . . . . . . . . Retrieved Components . | . . . . . . . . . . Parts Scanalyzed 2 | . . . . . 2 . . . . Part Schematics Acquired 2 | . . . . . 2 . . . . Parts Damaged . | . . . . . . . . . . Bothacking | -11 -10 -10 -8 -8 -7 -7 -7 -7 -7 ------------ Run | Yrd Mat Sub Mat Sto Fac Low Low Zio Dee Used RIF Installer . | . . . . . . . . . . Robots Hacked . | . . . . . . . . . . Non-combat . | . . . . . . . . . . Combat . | . . . . . . . . . . Robot Hacks Applied . | . . . . . . . . . . Relay Couplers Released . | . . . . . . . . . . Fabnet Peak Effective % . | . . . . . . . . . . Robots Rewired 1 | . . . . 1 . . . . . Allies Hacked . | . . . . . . . . . . Hacks Repelled . | . . . . . . . . . . Allies | -11 -10 -10 -8 -8 -7 -7 -7 -7 -7 -------- Run | Yrd Mat Sub Mat Sto Fac Low Low Zio Dee Total Allies 11 | . . . . 10 1 . . . . Largest Group 10 | . . . . 10 1 . . . . Highest-Rated Group 173 | . . . . 173 10 . . . . Highest-Rated Ally 29 | . . . . 29 10 . . . . Total Orders 2 | . . . . 2 . . . . . EXPLORE 2 | . . . . 2 . . . . . Ally Attacks 77 | . . . . 77 . . . . . Total Damage 882 | . . . . 882 . . . . . Kills 14 | . . . . 14 . . . . . Allies Corrupted 2 | . . . . 2 . . . . . Allies Melted . | . . . . . . . . . . Intel | -11 -10 -10 -8 -8 -7 -7 -7 -7 -7 ------- Run | Yrd Mat Sub Mat Sto Fac Low Low Zio Dee Robot Analysis Total . | . . . . . . . . . . Derelict Logs Recovered 5 | . . 1 . . . 1 2 1 . Drone Launches 8 | . . . . 8 . . . . . Drone Recoveries . | . . . . . . . . . . Exploration | -11 -10 -10 -8 -8 -7 -7 -7 -7 -7 ------------- Run | Yrd Mat Sub Mat Sto Fac Low Low Zio Dee Turns Passed 13539 | 50 1192 3699 1438 1472 1834 1028 435 1684 707 Spaces Moved 7712 | 28 617 1391 743 851 1463 647 377 1005 590 Core 312 | . . . . . . . . . 312 Treads 1905 | . 511 1391 3 . . . . . . Legs 5495 | 28 106 . 740 851 1463 647 377 1005 278 Wheels . | . . . . . . . . . . Hover . | . . . . . . . . . . Flight . | . . . . . . . . . . Fastest Speed 50 | 120 160 160 90 90 90 90 90 90 50 Average Speed 139 | 120 166 223 132 122 95 117 90 159 82 Slowest Speed 250 | 120 240 250 250 180 180 180 90 180 180 Overloaded Moves . | . . . . . . . . . . Propulsion Burnouts . | . . . . . . . . . . Robots Hopped . | . . . . . . . . . . Cave-ins Triggered . | . . . . . . . . . . Exploration Rate (%) 70 | 5 96 80 66 98 47 78 63 88 83 Regions Visited 9 Branch Regions 6 Pre-discovered Areas 4 | . . 2 . . . . 1 1 . Known Exits Taken 9 | 1 1 1 1 1 1 1 1 1 . Unknown Exits Taken . | . . . . . . . . . . Scrap Searched 18 | . . 9 . . . 4 2 3 . Spaces Dug 139 | . . 71 3 29 26 8 2 . . Terrain Destroyed 268 | . 3 107 4 57 26 45 2 1 23 Melee 108 | . . 63 3 7 26 7 2 . . Projectile 56 | . . 17 1 . . 36 . 1 1 AOE 104 | . 3 27 . 50 . 2 . . 22 Terrain Rammed . | . . . . . . . . . . Walls Destroyed . | . . . . . . . . . . Machines Disabled . | . . . . . . . . . . Actions | -11 -10 -10 -8 -8 -7 -7 -7 -7 -7 --------- Run | Yrd Mat Sub Mat Sto Fac Low Low Zio Dee Total 9643 | 35 705 1731 1086 1180 1762 842 467 1076 759 Wait 1002 | . 23 43 200 209 176 115 86 47 103 Move 7703 | 27 616 1390 742 850 1462 646 376 1004 590 Hop . | . . . . . . . . . . Pick Up 81 | 1 8 11 25 8 13 4 1 5 5 Fast Attach 30 | . 3 5 1 4 5 1 . . 11 Attach 26 | . 3 2 7 1 3 2 . . 8 Detach 8 | . 1 . 1 . . 2 . . 4 Swap 107 | . 6 34 13 15 19 12 . 3 5 Drop 95 | . 2 24 26 15 12 5 1 7 3 Fire 364 | 7 41 91 66 43 36 45 . 5 30 Melee 194 | . . 111 3 26 36 10 3 5 . Ram . | . . . . . . . . . . Kick 2 | . 1 . . 1 . . . . . Crush 1 | . 1 . . . . . . . . Escape Stasis . | . . . . . . . . . . Rewire 5 | . . . . 5 . . . . . Trap . | . . . . . . . . . . Miscellaneous 25 | . . 20 2 3 . . . . . Route ------- -11/Scrapyard -10/Materials (discovered 5 exits: *Mat x3 / *Min / *Sub) -10/Subcaves (discovered 2 exits: *Mat x2) -8/Materials (discovered 3 exits: *Fac x2 / *Sto) -8/Storage (discovered 2 exits: *Fac / Rec) -7/Factory -7/Lower Caves -7/Lower Caves -7/Zion (discovered 2 exits: *Dee / *Pro) -7/Deep Caves History --------- Turn | Location | Event 1 | -11/Scrapyard | Identified exit to Materials 1 | -11/Scrapyard | Discovered exit to Materials (range 3) 51 | -11/Scrapyard | Entered Materials 51 | -10/Materials | Evolved 1 slot: Utility x1 320 | -10/Materials | Identified exit to Materials 320 | -10/Materials | Discovered exit to Materials (range 14) 322 | -10/Materials | Build established: Hacker-Mutant 510 | -10/Materials | Discovered exit to Materials (range 16) 751 | -10/Materials | Identified exit to Mines 751 | -10/Materials | Discovered exit to Mines (range 6) 902 | -10/Materials | Discovered exit to Materials (range 16) 1210 | -10/Materials | Identified exit to Subcaves 1210 | -10/Materials | Discovered exit to Subcaves (range 8) 1243 | -10/Materials | Entered Subcaves 1346 | -10/Subcaves | Shifting Twisted Machinery released Battle Rifle 1366 | -10/Subcaves | Shifting Twisted Machinery released Mak. Hammer 1478 | -10/Subcaves | A swath of the cavern ceiling suddenly collapsed 1768 | -10/Subcaves | Identified exit to Materials 1768 | -10/Subcaves | Discovered exit to Materials (range 14) 2100 | -10/Subcaves | Shifting Twisted Machinery released Battle Rifle 2108 | -10/Subcaves | Learned location of Zion (-7) 2108 | -10/Subcaves | Met a Zionite searching for "candidates" 2124 | -10/Subcaves | Shifting Twisted Machinery released Sub. Monowheel 2293 | -10/Subcaves | Discovered exit to Materials (range 10) 2532 | -10/Subcaves | Disturbed a concealed Subdweller 3185 | -10/Subcaves | Ambushed by Subdweller buried in earth 3315 | -10/Subcaves | Shifting Twisted Machinery released Sub. Monowheel 3336 | -10/Subcaves | Shifting Twisted Machinery released Mak. Sword 3568 | -10/Subcaves | A swath of the cavern ceiling suddenly collapsed 3710 | -10/Subcaves | A Subdweller sparked back to life 3710 | -10/Subcaves | A Subdweller sparked back to life 3754 | -10/Subcaves | Found Prototype Leg 4152 | -10/Subcaves | Ambushed by Subdweller buried in earth 4177 | -10/Subcaves | Ambushed by Subdweller buried in earth 4283 | -10/Subcaves | Ambushed by Subdweller buried in earth 4388 | -10/Subcaves | Ambushed by Subdweller buried in earth 4474 | -10/Subcaves | Ambushed by Subdweller buried in earth 4558 | -10/Subcaves | Ambushed by Subdweller buried in earth 4580 | -10/Subcaves | Core integrity fell below 50% 4942 | -10/Subcaves | Entered Materials 4942 | -8/Materials | Evolved 4 slots: Propulsion x1, Utility x2, Weapon x1 4951 | -8/Materials | Identified Arachnoskeleton 4952 | -8/Materials | Attached Arachnoskeleton, gained temporary slots: Propulsion x3 5002 | -8/Materials | Identified exit to Storage 5002 | -8/Materials | Discovered exit to Storage (range 16) 5300 | -8/Materials | Build established: Hacker-Tank 6068 | -8/Materials | Repaired Structural Scanner 6157 | -8/Materials | Identified exit to Factory 6157 | -8/Materials | Discovered exit to Factory (range 5) 6296 | -8/Materials | Discovered exit to Factory (range 7) 6380 | -8/Materials | Entered Storage 6425 | -8/Storage | Repaired Minigun 6437 | -8/Storage | Assisted by bots powering up and referring to "LRC-V3" 6752 | -8/Storage | Build established: Commander-Mutant 6883 | -8/Storage | Lost 8 allies 7207 | -8/Storage | Identified exit to Recycling 7598 | -8/Storage | Build established: Hacker-Mutant 7687 | -8/Storage | Discovered exit to Factory (range 57) 7852 | -8/Storage | Entered Factory 7852 | -7/Factory | Evolved 2 slots: Utility x2 8420 | -7/Factory | Fabricated T-07 Excavator? 8608 | -7/Factory | Identified exit to Lower Caves 8608 | -7/Factory | Discovered exit to Lower Caves (range 4) 8655 | -7/Factory | Repaired Imp. Heavy Laser 8849 | -7/Factory | Cargo convoy interrupted 8929 | -7/Factory | Fabricated Imp. VSS Leg (x2) 9686 | -7/Factory | Entered Lower Caves 9929 | -7/Lower Caves | Attracted the attention of an 0b10 checkpoint 10002 | -7/Lower Caves | Learned Factory trap positions 10182 | -7/Lower Caves | Spotted B-75 Beast 10650 | -7/Lower Caves | Identified exit to Lower Caves 10650 | -7/Lower Caves | Discovered exit to Lower Caves (range 8) 10714 | -7/Lower Caves | Entered another Lower Caves area 10779 | -7/Lower Caves | Encountered a Warlord checkpoint 10886 | -7/Lower Caves | Learned Factory garrison access intel 10925 | -7/Lower Caves | Spotted B-75 Beast 11132 | -7/Lower Caves | Identified exit to Zion 11132 | -7/Lower Caves | Discovered exit to Zion (range 9) 11149 | -7/Lower Caves | Entered Zion 11164 | -7/Zion | Given A8's code to call for help 11195 | -7/Zion | Identified exit to Proximity Caves 11195 | -7/Zion | Discovered exit to Proximity Caves (range 18) 11202 | -7/Zion | Received a hallucinogenic algorithm 11387 | -7/Zion | Learned Factory scanalyzer intel 11588 | -7/Zion | Learned Factory stockpile data 11728 | -7/Zion | Found GAL Module 11990 | -7/Zion | Learned Factory fabricator intel 11995 | -7/Zion | Given the Hacking Drone Bay 11999 | -7/Zion | Found Prototype Device 12602 | -7/Zion | Found CR-A16's Pointy Stick 12831 | -7/Zion | Identified exit to Deep Caves 12831 | -7/Zion | Discovered exit to Deep Caves (range 3) 12831 | -7/Zion | Saw the warning signs outside the Deep Caves entrance 12833 | -7/Zion | Entered Deep Caves 13058 | -7/Deep Caves | Attacked by Z-Imprinter 13097 | -7/Deep Caves | Lost 3 parts (3u) 13120 | -7/Deep Caves | Z-Facility disabled 13123 | -7/Deep Caves | Destroyed Z-Imprinter 13154 | -7/Deep Caves | Lost 4 parts (1p1n1u1w) 13309 | -7/Deep Caves | Found Prototype Protection 13320 | -7/Deep Caves | Found Prototype Protection 13327 | -7/Deep Caves | Lost 3 parts (1u2w) 13370 | -7/Deep Caves | Released all parts (10) 13373 | -7/Deep Caves | Core integrity fell below 50% 13395 | -7/Deep Caves | Lost 4 parts (1p1n1u1w) 13418 | -7/Deep Caves | Identified Hacking Drone Bay 13420 | -7/Deep Caves | Identified Zio. Weapon Casing 13536 | -7/Deep Caves | Spotted AG-01988 13538 | -7/Deep Caves | Core integrity fell below 20% 13539 | -7/Deep Caves | Triggered Deep Caves wall 13540 | -7/Deep Caves | Destroyed by AG-01988 with Assembled Focal Cannon Last Messages --------------- 13370_ Released Lrn. Tractor Beam. 13370_ Released Beamcaster. 13370_ Released Imp. Heavy Laser. 13370_ Dropped Hrd. Heavy Armor Plating. 13370_ Temporary Propulsion slot lost. 13372_ Acquired Beamcaster. 13383_ Acquired 10 matter. 13384_ Acquired Mak. Hacking Suite. 13387_ Acquired 11 matter. 13388_ Acquired Mak. Hacking Suite. 13413_ Acquired Structural Scanner. 13415_ Acquired Prototype Device. 13415_ Identified Exp. Heat Sink. 13418_ Acquired Prototype Device. 13418_ Identified Hacking Drone Bay. 13420_ Acquired Prototype Protection. 13420_ Identified Zio. Weapon Casing. 13456_ Dropped Structural Scanner. 13538_ AG-01988: "DSI9AT1D G8OHIBQ29FWG 26R186 QD12WHW8W33 TDK1 81FTS" 13539_ The wall dematerializes. Map ----- +----------------------------------------------------+ | ???????????????????????????????# ##### | | ???????????????????????????????# #???# | | ???????????????????????????????# #???# | | ???????????????????????????????# #???## | | ????????????????????????????#### ###??# | | ????????????????????????????# ##?## | | ????????????????????????????# ### #### | | ???????????????? ??????# "# | | ?????????????? ?????# ### | | ??????????? #???#?# ### | | ?????????" [ #?? #?###### ### | | ???????## [ ### ##?????##### | | ??????" [ # ????????## | | ????? a ##???????# | | ???? aa ###?????## | | ???? aa aaa [ ???????#### | | ???a aa a #??????????## | | ??? a a aa [ [[ ##???????### | | ??? aaaa aa M s #??????## | | ???? aaMaa !g #??????# | | ??????" aaa ! ! ! s #??????# | | ????????# * [ #?????## | | ?????????" * #????## | | ?????????" g [ #???## | | ?????????" * #??## | | ?????????" @ [ ##?# | | ?????????" / g// [ #?# | | ????????# [ ### | | ????????" / l l s ## | | ????????" / # | | ????????"G / g | | ????????""" # | | ????????? b ## | | ?????????" # #? | | ????????? ## #? | | ????????"" ### ##? | | ????????? # # #?## ####?? | | ????????? #### ## ## ##??####????? | | ????????""" ##???# ## ####???????????? | | ??????????? ?????##?# ???????????????? | | ?????????????#?????????#???????????????? | | | | | | | | | | | | | | | | | | | +----------------------------------------------------+ Best States ------------- Heat Dissipation 67 Energy Generation 27 Energy Capacity 880 Matter Stores 300 Matter Capacity 300 Sight Range 20 Terrain Scan Density 10 Base Temperature (-) 100 Armor Coverage 800 Resistance: KI 35 Resistance: TH 35 Resistance: EX 35 Resistance: EM 35 Resistance: I 35 Resistance: S 35 Resistance: P 35 Propulsion Shielding 66 Utility Shielding 66 Weapon Shielding 100 Evasion (%) 57 Targeting Accuracy 6 Recoil Reduction 2 Kinecelleration 30 Offensive Hacking 53 Item Schematics ----------------- Assault Cannon | -8/Materials | Extracted Adv. EMP Blaster | -8/Materials | Extracted Med. Battery | -8/Materials | Extracted Datajack | -8/Materials | Extracted Lgt. Deuterium Engine | -8/Materials | Extracted Ion Cannon | -8/Materials | Extracted Hvy. EM Shotgun | -8/Materials | Extracted Tractor Beam | -8/Materials | Extracted EM Shotgun | -8/Materials | Extracted Imp. Propulsion Shielding | -7/Factory | Scanalyzed VSS Leg | -7/Factory | Scanalyzed Imp. VSS Leg | -7/Factory | Hacked Recalibrator | -7/Zion | Archive Adv. Melee Analysis Suite | -7/Zion | Archive Mak. Shrapnel Gun | -7/Zion | Archive Cloaking Device | -7/Zion | Archive Mak. Spear | -7/Zion | Archive Adv. Terrain Scanner | -7/Zion | Archive Arc Projector | -7/Zion | Archive Mak. Trap Scanner | -7/Zion | Archive Imp. Kinecellerator | -7/Zion | Archive Shock Absorption System | -7/Zion | Archive Imp. Hacking Suite | -7/Zion | Archive Kinecellerator | -7/Zion | Archive Flexi-carbon Leg | -7/Zion | Archive Imp. Medium Treads | -7/Zion | Archive Riot Gun | -7/Zion | Free Battle Rifle | -7/Zion | Free Barrage Gun | -7/Zion | Free Battle Cannon | -7/Zion | Free Bore Cannon | -7/Zion | Free Robot Schematics ------------------ M-28 Smith | -7/Zion | Archive P-60 Hacker | -7/Zion | Archive A-02 Transporter | -7/Zion | Archive Y-72 Warden | -7/Zion | Archive Fabricated ------------ T-07 Excavator | x1 | -7/Factory | Preloaded Imp. VSS Leg | x2 | -7/Factory Alien Tech Used ----------------- None Achievements -------------- Release The Drones! Challenges ------------ None Game ------ Seed DecoderGammaStick Manual? 0 Play Time 03:04:27 Cumulative 290.7 hours Start 2024.04.11 @ 20:37:10 End 2024.04.12 @ 11:07:35 Sessions 3 Manual Loads 0 Difficulty Explorer Special Mode None Game No. 103 Rogue 68 Adventurer 0 Explorer 35 Win Type - Total 9 Types 7/1/1/0/0/0/0/0/0 Lore% 64 Gallery% 72 Achievement% 64 Wizard Run 0 Options --------- Layout 0 ASCII 1 Keyboard 1 Movement Arrows Keybinds 0 Fullscreen 2 Font 36/Smallcaps Map View 76x50 Zoom Use 0% Tactical HUD 1 Map Filters NONE Filters NONE Steam 1 RUN: 40a82268-a42c-4eea-b749-895659bb405c